bitfinex/quotes_SOLUSD_20240916
["timestamp","ask_amount","ask_price","bid_price","bid_amount"]
[1726448157718,23.776884,131.47,131.42,15.2012]
[1726448158122,30.622884,131.47,131.42,15.2012]
[1726448159928,23.776884,131.47,131.42,15.2012]
[1726448160222,23.776884,131.45,131.42,15.2012]
[1726448163503,23.776884,131.45,131.41,6.5882]
[1726448163920,23.776884,131.41,131.4,0.2565601]
[1726448164121,30.625584,131.41,131.4,0.2565601]
[1726448164520,50.625584,131.41,131.4,0.2565601]
[1726448169301,6.8482,131.42,131.4,0.2565601]
[1726448170429,20.0,131.44,131.4,0.2565601]
[1726448170931,23.776884,131.43,131.4,0.2565601]
[1726448171336,23.776884,131.41,131.4,0.2565601]
[1726448174134,20.0,131.44,131.4,0.2565601]
[1726448174135,6.8472,131.44,131.4,0.2565601]
[1726448174938,282.7,131.47,131.4,0.2565601]
[1726448175522,6.8466,131.46,131.4,0.2565601]
[1726448176244,6.8457,131.47,131.4,0.2565601]
[1726448177517,26.8451,131.48,131.4,0.2565601]
[1726448177717,6.8456,131.47,131.4,0.2565601]
[1726448178237,23.776884,131.46,131.4,0.2565601]
[1726448180938,30.623184,131.46,131.4,0.2565601]
[1726448182138,23.776884,131.43,131.4,0.2565601]
[1726448182327,23.776884,131.44,131.4,0.2565601]
[1726448184341,23.776884,131.45,131.4,0.2565601]
[1726448184640,23.776884,131.46,131.4,0.2565601]
[1726448184943,23.776884,131.47,131.4,0.2565601]
[1726448185417,23.776884,131.45,131.4,0.2565601]
[1726448187027,23.776884,131.43,131.4,0.2565601]
[1726448187232,30.624684,131.43,131.4,0.2565601]
[1726448188442,23.776884,131.41,131.4,0.2565601]
[1726448189444,30.625584,131.41,131.4,0.2565601]
[1726448193851,23.776884,131.41,131.4,0.2565601]
[1726448214272,30.625584,131.41,131.4,0.2565601]
[1726448216356,23.776884,131.41,131.4,0.2565601]
[1726448217085,6.8484,131.42,131.4,0.2565601]
[1726448218397,23.776884,131.41,131.4,0.2565601]
[1726448221672,6.8463,131.46,131.4,22.2905601]
[1726448223278,6.8476,131.44,131.4,6.8445601]
[1726448223487,20.0,131.45,131.4,6.8445601]
[1726448223656,6.8478,131.43,131.4,0.2565601]
[1726448224075,6.8483,131.42,131.4,0.2565601]
[1726448224469,23.776884,131.41,131.4,0.2565601]
[1726448234602,6.8468,131.45,131.4,0.2565601]
[1726448235310,6.8473,131.44,131.4,0.2565601]
[1726448236618,6.8478,131.43,131.4,0.2565601]
[1726448236778,50.0,131.46,131.4,0.2565601]
[1726448236779,6.8485,131.42,131.4,0.2565601]
[1726448236979,23.776884,131.41,131.4,0.2565601]
[1726448237712,30.625584,131.41,131.4,0.2565601]
[1726448241203,50.0,131.44,131.36,0.2565601]
[1726448241204,23.776884,131.39,131.36,0.2565601]
[1726448242499,30.626784,131.39,131.36,0.2565601]
[1726448242902,23.776884,131.39,131.36,0.2565601]
[1726448243796,23.776884,131.4,131.36,0.2565601]
[1726448244904,6.8484,131.42,131.36,0.2565601]
[1726448246315,30.625784,131.41,131.36,0.2565601]
[1726448247096,23.776884,131.39,131.36,0.2565601]
[1726448247617,23.776884,131.4,131.36,0.2565601]
[1726448248113,30.626284,131.4,131.36,0.2565601]
[1726448250921,23.776884,131.4,131.36,0.2565601]
[1726448253704,6.8508,131.37,131.36,0.2565601]
[1726448253917,30.627684,131.37,131.36,0.2565601]
[1726448264556,23.776884,131.37,131.36,0.2565601]
[1726448270369,30.627684,131.37,131.36,0.2565601]
[1726448278547,6.8529,131.33,131.32,0.2565601]
[1726448278768,30.629784,131.33,131.32,0.2565601]
[1726448278954,30.629784,131.33,131.28,0.2565601]
[1726448278955,23.776884,131.29,131.28,0.2565601]
[1726448279262,30.631884,131.29,131.28,0.2565601]
[1726448280342,23.776884,131.29,131.28,0.2565601]
[1726448280544,6.8534,131.33,131.28,0.2565601]
[1726448280746,30.630784,131.32,131.28,0.2565601]
[1726448281050,6.854,131.31,131.28,0.2565601]
[1726448281261,23.776884,131.3,131.28,0.2565601]
[1726448281660,6.8534,131.33,131.28,7.1120601]
[1726448281869,6.8535,131.32,131.28,0.2565601]
[1726448282568,6.8531,131.33,131.28,7.1119601]
[1726448284361,23.776884,131.32,131.28,7.1119601]
[1726448284570,23.776884,131.32,131.29,6.8549]
[1726448284768,23.776884,131.33,131.3,6.8544]
[1726448284991,50.0,131.39,131.31,6.5206]
[1726448285279,33.96693647,131.41,131.31,6.5206]
[1726448285447,6.8508,131.38,131.33,6.8529]
[1726448286362,23.776884,131.37,131.33,6.8529]
[1726448286678,8.17543647,131.41,131.33,15.600983]
[1726448286850,8.17543647,131.41,131.34,15.0584]
[1726448287052,6.8489,131.41,131.34,15.0584]
[1726448287361,6.8494,131.4,131.34,15.0584]
[1726448287548,6.85,131.39,131.34,15.0584]
[1726448288265,23.776884,131.38,131.34,15.0584]
[1726448288874,23.776884,131.39,131.34,15.0584]
[1726448289766,30.626784,131.39,131.34,15.0584]
[1726448292674,23.776884,131.39,131.34,15.0584]
[1726448294274,23.776884,131.36,131.34,15.0584]
[1726448295251,30.628284,131.36,131.31,22.9098]
[1726448295464,23.776884,131.34,131.31,22.9098]
[1726448304083,30.628984,131.35,131.31,29.7636]
[1726448304258,20.0,131.4,131.31,38.510783]
[1726448304590,6.8504,131.38,131.34,6.8522]
[1726448304769,6.8492,131.41,131.36,6.8513]
[1726448304973,0.2565601,131.42,131.36,6.8513]
[1726448305158,0.2565601,131.42,131.32,15.600983]
[1726448305159,6.8497,131.4,131.32,15.600983]
[1726448305980,6.8497,131.4,131.35,6.8518]
[1726448306372,23.776884,131.39,131.35,6.8518]
[1726448306962,0.2565601,131.42,131.35,15.600983]
[1726448307262,0.2565601,131.42,131.36,16.4919]
[1726448307988,7.1047601,131.42,131.36,16.4919]
[1726448308165,0.2565601,131.42,131.37,6.3395]
[1726448309882,24.0334441,131.42,131.37,6.3395]
[1726448311084,0.2565601,131.42,131.37,6.3395]
[1726448311890,0.2565601,131.42,131.37,21.940483]
[1726448317394,0.2565601,131.42,131.37,6.3395]
[1726448321089,0.2565601,131.42,131.37,21.940483]
[1726448321384,0.2565601,131.42,131.39,35.600983]
[1726448321591,0.2565601,131.42,131.4,15.0884]
[1726448323531,0.2565601,131.42,131.38,20.0]
[1726448323995,0.2565601,131.42,131.37,21.4279]
[1726448324196,7.1048601,131.42,131.37,21.4279]
[1726448324373,23.776884,131.41,131.37,21.4279]
[1726448324579,24.0334441,131.42,131.37,21.4279]
[1726448324881,23.70370076,131.42,131.37,21.4279]
[1726448326691,30.55200076,131.42,131.37,21.4279]
[1726448327794,30.55200076,131.42,131.37,6.3395]
[1726448327993,30.55200076,131.42,131.34,6.228]
[1726448328306,30.55200076,131.42,131.34,26.228]
[1726448329999,6.8489,131.41,131.34,26.228]
[1726448330200,23.776884,131.4,131.34,26.228]
[1726448330805,15.2126,131.39,131.32,0.2565601]
[1726448330988,23.776884,131.35,131.32,0.2565601]
[1726448331391,30.627284,131.38,131.32,0.2565601]
[1726448336594,6.8511,131.37,131.32,0.2565601]
[1726448336790,23.776884,131.36,131.32,0.2565601]
[1726448337319,6.8511,131.37,131.32,0.2565601]
[1726448337320,23.776884,131.37,131.32,0.2565601]
[1726448338018,23.776884,131.38,131.32,0.2565601]
[1726448340806,6.8493,131.4,131.32,0.2565601]
[1726448341120,6.8493,131.4,131.32,15.8575431]
[1726448341433,6.8488,131.41,131.33,37.223083]
[1726448341603,6.8488,131.41,131.34,20.0]
[1726448341799,22.5172,131.43,131.34,20.0]
[1726448342428,6.8482,131.42,131.34,20.0]
[1726448343604,23.776884,131.41,131.34,35.600983]
[1726448345437,23.776884,131.42,131.34,35.600983]
[1726448348409,23.776884,131.42,131.35,15.600983]
[1726448350038,23.776884,131.42,131.36,6.63]
[1726448350543,6.8472,131.44,131.37,15.9061]
[1726448350838,7.1027601,131.46,131.39,22.230983]
[1726448352307,23.776884,131.45,131.39,22.230983]
[1726448353718,23.776884,131.45,131.39,6.63]
[1726448354123,30.623584,131.45,131.39,6.63]
[1726448357924,23.776884,131.45,131.39,6.63]
[1726448358142,23.776884,131.45,131.39,22.230983]
[1726448358440,24.0334441,131.46,131.4,16.6064]
[1726448359021,0.2565601,131.46,131.4,32.207383]
[1726448359948,0.2565601,131.46,131.4,16.6064]
[1726448360328,24.0334441,131.46,131.4,16.6064]
[1726448360844,30.8797441,131.46,131.4,16.6064]
[1726448362369,23.776884,131.44,131.4,16.6064]
[1726448363451,0.2565601,131.46,131.4,16.6064]
[1726448364338,23.776884,131.45,131.4,16.6064]
[1726448366262,30.623684,131.45,131.4,16.6064]
[1726448367727,23.776884,131.43,131.4,16.6064]
[1726448368343,30.624684,131.43,131.4,16.6064]
[1726448370557,23.776884,131.41,131.39,6.63]
[1726448371359,23.776884,131.42,131.39,6.63]
[1726448371644,6.8473,131.44,131.39,6.63]
[1726448371848,23.776884,131.43,131.39,6.63]
[1726448373332,30.624584,131.43,131.39,6.63]
[1726448378948,23.776884,131.43,131.39,6.63]
[1726448379758,7.1031601,131.46,131.4,15.414]
[1726448380160,0.2565601,131.46,131.4,15.414]
[1726448381866,24.0334441,131.46,131.4,15.414]
[1726448388244,24.0334441,131.46,131.4,31.014983]
[1726448389143,30.8796441,131.46,131.4,15.414]
[1726448391355,30.8796441,131.46,131.4,31.014983]
[1726448393463,23.776884,131.44,131.4,15.414]
[1726448394974,23.776884,131.45,131.4,15.414]
[1726448395783,23.776884,131.45,131.4,19.18076047]
[1726448396855,23.776884,131.45,131.4,22.94752094]
[1726448397772,30.623684,131.45,131.4,22.94752094]
[1726448397976,23.776884,131.43,131.4,19.18076047]
[1726448398186,30.624584,131.43,131.4,19.18076047]
[1726448398374,23.776884,131.41,131.39,6.63]
[1726448398674,23.776884,131.41,131.37,15.4152]
[1726448399054,23.776884,131.41,131.36,6.3617]
[1726448399256,23.776884,131.38,131.36,6.3617]
[1726448399767,23.776884,131.39,131.36,6.3617]
[1726448400160,30.626784,131.39,131.36,6.3617]
[1726448400561,6.8514,131.36,131.33,6.5164]
[1726448400791,23.776884,131.39,131.32,0.2565601]
[1726448400964,23.776884,131.4,131.32,0.2565601]
[1726448401167,30.628084,131.37,131.32,0.2565601]
[1726448401366,23.776884,131.37,131.32,0.2565601]
[1726448401581,6.8518,131.36,131.32,0.2565601]
[1726448401883,23.776884,131.35,131.32,0.2565601]
[1726448402599,21.07983219,131.4,131.32,0.2565601]
[1726448402886,23.776884,131.36,131.32,0.2565601]
[1726448403593,6.8502,131.39,131.32,15.8575431]
[1726448403881,21.07463219,131.44,131.35,38.107483]
[1726448404083,6.8481,131.43,131.36,15.600983]
[1726448404455,0.2565601,131.46,131.38,35.600983]
[1726448405080,0.2565601,131.46,131.36,20.0]
[1726448405388,6.8485,131.42,131.36,20.0]
[1726448405759,6.8488,131.41,131.35,22.5065]
[1726448406586,23.776884,131.39,131.35,22.5065]
[1726448407380,23.776884,131.4,131.35,22.5065]
[1726448408775,23.776884,131.38,131.35,6.1712]
[1726448409201,30.627184,131.38,131.35,6.1712]
[1726448409359,30.627184,131.38,131.32,16.7305601]
[1726448409360,23.776884,131.36,131.32,16.7305601]
[1726448410502,23.776884,131.36,131.32,0.2565601]
[1726448410697,30.628484,131.36,131.32,0.2565601]
[1726448410901,23.776884,131.34,131.32,0.2565601]
[1726448411089,23.776884,131.36,131.32,0.2565601]
[1726448411291,23.776884,131.37,131.32,0.2565601]
[1726448411911,23.776884,131.35,131.32,0.2565601]
[1726448412214,23.776884,131.33,131.32,0.2565601]
[1726448413494,30.629784,131.33,131.32,0.2565601]
[1726448414022,23.776884,131.33,131.32,0.2565601]
[1726448414588,6.8493,131.4,131.33,15.707]
[1726448414820,288.8226,131.43,131.33,15.707]
[1726448414821,282.7,131.43,131.36,6.8511]
[1726448415002,16.0399,131.45,131.36,6.8511]
[1726448415199,16.0399,131.45,131.36,20.0]
[1726448415401,16.0399,131.45,131.36,37.12327417]
[1726448415717,6.8472,131.44,131.38,6.8499]
[1726448416100,6.8477,131.43,131.38,6.8499]
[1726448416302,50.2565601,131.46,131.35,6.1499]
[1726448416491,6.8492,131.41,131.35,6.1499]
[1726448417122,23.776884,131.4,131.35,6.1499]
[1726448419322,23.776884,131.42,131.35,6.1499]
[1726448419699,30.625384,131.42,131.35,6.1499]
[1726448420413,23.776884,131.42,131.35,6.1499]
[1726448420716,23.776884,131.38,131.35,6.1499]
[1726448421324,23.776884,131.39,131.35,6.1499]
[1726448422907,30.626684,131.39,131.35,6.1499]
[1726448423221,30.626684,131.39,131.33,15.707]
[1726448423222,6.8514,131.36,131.33,15.707]
[1726448423419,23.776884,131.35,131.32,6.8726601]
[1726448424103,23.776884,131.36,131.32,6.8726601]
[1726448425835,23.776884,131.37,131.32,6.8726601]
[1726448426811,30.627884,131.37,131.32,6.8726601]
[1726448427116,23.776884,131.37,131.32,6.8726601]
[1726448428034,23.776884,131.35,131.32,6.8726601]
[1726448428331,23.776884,131.34,131.32,6.8726601]
[1726448429227,30.629284,131.34,131.32,0.2565601]
[1726448431913,23.776884,131.34,131.32,0.2565601]
[1726448433155,30.629384,131.34,131.32,0.2565601]
[1726448433336,6.8529,131.33,131.32,0.2565601]
[1726448433537,30.629784,131.33,131.32,0.2565601]
[1726448434244,23.776884,131.33,131.32,0.2565601]
[1726448435626,30.629784,131.33,131.32,0.2565601]
[1726448440453,6.8525,131.34,131.32,0.2565601]
[1726448441359,6.852,131.35,131.32,0.2565601]
[1726448441554,6.8514,131.36,131.32,0.2565601]
[1726448441765,6.8519,131.35,131.32,0.2565601]
[1726448442537,6.8514,131.36,131.32,0.2565601]
[1726448443730,23.776884,131.35,131.32,0.2565601]
[1726448446255,6.8529,131.34,131.32,0.2565601]
[1726448446434,23.776884,131.33,131.32,0.2565601]
[1726448448442,30.629784,131.33,131.32,0.2565601]
[1726448450259,23.776884,131.33,131.32,0.2565601]
[1726448451351,30.629784,131.33,131.32,0.2565601]
[1726448456572,23.776884,131.33,131.32,0.2565601]
[1726448458253,30.629784,131.33,131.32,0.2565601]
[1726448459679,23.776884,131.33,131.32,0.2565601]
[1726448460948,30.629784,131.33,131.32,0.2565601]
[1726448470077,23.776884,131.33,131.32,0.2565601]
[1726448470779,30.629784,131.33,131.32,0.2565601]
[1726448471357,50.629784,131.33,131.32,0.2565601]
[1726448473464,30.629784,131.33,131.32,0.2565601]
[1726448474362,6.8546,131.3,131.28,6.4185601]
[1726448474676,23.776884,131.29,131.28,6.4185601]
[1726448476349,6.8536,131.32,131.28,6.4185601]
[1726448476548,23.776884,131.31,131.28,6.4185601]
[1726448478378,6.8529,131.33,131.28,6.4185601]
[1726448478558,6.8536,131.32,131.28,6.4185601]
[1726448479275,6.8536,131.32,131.28,13.2740601]
[1726448479770,20.0,131.35,131.29,6.8549]
[1726448479996,6.8524,131.34,131.3,6.8544]
[1726448480175,6.8524,131.34,131.29,6.855]
[1726448481072,23.776884,131.33,131.29,6.855]
[1726448481679,23.776884,131.33,131.3,6.8545]
[1726448482377,23.776884,131.33,131.29,6.8549]
[1726448483472,30.629984,131.33,131.28,13.2740601]
[1726448484371,23.776884,131.34,131.29,6.8547]
[1726448484798,27.87986145,131.38,131.28,6.4185601]
[1726448484985,33.47404818,131.38,131.31,6.8539]
[1726448485290,33.47404818,131.38,131.28,6.4185601]
[1726448485291,6.8524,131.34,131.29,6.8547]
[1726448485583,6.853,131.33,131.28,13.2739601]
[1726448486176,6.8525,131.34,131.29,6.8549]
[1726448486489,23.776884,131.33,131.3,6.8543]
[1726448486678,6.8519,131.35,131.3,6.8543]
[1726448486679,23.776884,131.34,131.3,6.8543]
[1726448489769,23.776884,131.35,131.28,13.2735601]
[1726448490476,23.776884,131.32,131.28,13.2735601]
[1726448494390,23.776884,131.32,131.29,6.855]
[1726448494779,23.776884,131.33,131.29,6.855]
[1726448495884,23.776884,131.33,131.28,6.4185601]
[1726448496317,23.776884,131.33,131.29,6.8549]
[1726448498493,23.776884,131.33,131.3,6.8544]
[1726448501108,23.776884,131.34,131.3,6.8544]
[1726448501416,6.852,131.35,131.3,6.8544]
[1726448501417,30.628784,131.35,131.3,6.8544]
[1726448502000,23.95553219,131.38,131.31,6.8539]
[1726448502298,20.0,131.38,131.31,22.5952]
[1726448502485,70.85901575,131.39,131.31,22.5952]
[1726448503314,6.8514,131.36,131.31,22.5952]
[1726448503501,23.776884,131.35,131.31,22.5952]
[1726448507587,23.776884,131.35,131.31,15.7413]
[1726448507786,23.776884,131.36,131.31,15.7413]
[1726448508703,6.8509,131.37,131.32,6.1108]
[1726448508990,23.776884,131.36,131.32,6.1108]
[1726448510693,30.628284,131.36,131.32,6.1108]
[1726448512097,6.852,131.35,131.32,6.1108]
[1726448512299,23.776884,131.34,131.32,6.1108]
[1726448513222,30.629284,131.34,131.32,6.1108]
[1726448513514,23.776884,131.34,131.32,6.1108]
[1726448513905,30.628884,131.35,131.32,6.1108]
[1726448514119,23.776884,131.35,131.32,6.1108]
[1726448515224,30.628784,131.35,131.32,6.1108]
[1726448517324,23.776884,131.35,131.32,6.1108]
[1726448517926,23.776884,131.35,131.32,12.9641]
[1726448518110,6.8508,131.38,131.33,6.8525]
[1726448518304,6.8509,131.37,131.33,6.8525]
[1726448518520,6.8514,131.36,131.32,12.9642]
[1726448518832,6.8514,131.36,131.32,6.1108]
[1726448519203,23.776884,131.35,131.32,6.1108]
[1726448519835,30.628784,131.35,131.32,6.1108]
[1726448520011,23.776884,131.35,131.32,6.1108]
[1726448520843,23.776884,131.32,131.29,6.5466]
[1726448521123,23.776884,131.32,131.29,13.4015]
[1726448524419,30.630484,131.32,131.29,6.5466]
[1726448524637,23.776884,131.32,131.29,6.5466]
[1726448527639,23.776884,131.32,131.29,13.4015]
[1726448527834,23.776884,131.33,131.29,13.4015]
[1726448528047,23.776884,131.33,131.3,6.8543]
[1726448528226,23.776884,131.34,131.3,6.8543]
[1726448530246,23.776884,131.32,131.29,6.5466]
[1726448530425,6.8541,131.31,131.28,15.4626601]
[1726448530633,30.631384,131.3,131.28,0.2565601]
[1726448530835,30.631884,131.29,131.28,0.2565601]
[1726448537324,23.776884,131.29,131.24,0.2565601]
[1726448537637,6.8568,131.26,131.24,0.2565601]
[1726448537841,30.633984,131.25,131.24,0.2565601]
[1726448538066,30.636084,131.21,131.2,0.2565601]
[1726448539259,6.8604,131.19,131.16,0.2565601]
[1726448539554,23.776884,131.18,131.16,0.2565601]
[1726448540242,30.637884,131.18,131.16,0.2565601]
[1726448540441,23.776884,131.18,131.16,0.2565601]
[1726448540955,30.637784,131.18,131.16,0.2565601]
[1726448541163,6.8613,131.17,131.16,0.2565601]
[1726448541331,6.863,131.14,131.12,0.2565601]
[1726448541532,43.776884,131.17,131.12,0.2565601]
[1726448541533,30.640284,131.13,131.12,0.2565601]
[1726448542130,23.776884,131.13,131.12,0.2565601]
[1726448543037,30.640284,131.13,131.12,0.2565601]
[1726448543436,30.640284,131.13,131.12,0.069165]
[1726448546554,23.776884,131.13,131.12,0.069165]
[1726448547455,6.8623,131.16,131.12,0.069165]
[1726448547651,6.8624,131.15,131.12,0.069165]
[1726448548465,6.8618,131.16,131.12,0.069165]
[1726448548659,289.5612,131.18,131.12,6.932865]
[1726448549535,6.8614,131.17,131.12,6.932865]
[1726448550241,289.5609,131.18,131.13,6.8633]
[1726448551266,6.8613,131.17,131.13,6.8633]
[1726448551444,23.776884,131.16,131.12,6.932965]
[1726448551764,23.776884,131.16,131.13,6.8633]
[1726448552670,23.776884,131.16,131.12,0.069165]
[1726448552845,23.776884,131.16,131.13,6.8633]
[1726448553041,15.9814,131.19,131.14,6.8627]
[1726448553042,6.8607,131.19,131.14,6.8627]
[1726448553366,6.8598,131.2,131.15,6.8622]
[1726448553741,6.8598,131.2,131.15,13.4016]
[1726448554756,23.776884,131.19,131.15,13.4016]
[1726448554958,30.637184,131.19,131.15,13.4016]
[1726448555162,30.637184,131.19,131.15,6.5394]
[1726448555663,30.638584,131.17,131.13,16.6421]
[1726448555875,23.776884,131.17,131.13,23.505]
[1726448556051,23.776884,131.17,131.15,6.8623]
[1726448556368,30.637784,131.18,131.13,16.6421]
[1726448557244,30.637784,131.18,131.13,23.5054]
[1726448557869,23.776884,131.16,131.13,16.6421]
[1726448558669,23.776884,131.16,131.13,16.711265]
[1726448560358,30.638684,131.16,131.13,16.711265]
[1726448561564,23.776884,131.16,131.13,16.711265]
[1726448561965,23.776884,131.16,131.13,23.574465]
[1726448562278,23.776884,131.18,131.14,6.8627]
[1726448562474,6.8608,131.18,131.14,6.8627]
[1726448562779,23.776884,131.17,131.14,6.8627]
[1726448563365,23.776884,131.17,131.13,23.574565]
[1726448563754,6.8595,131.21,131.13,16.711265]
[1726448563962,6.8602,131.2,131.14,6.8623]
[1726448565288,30.637184,131.19,131.14,6.8623]
[1726448566559,30.637184,131.19,131.15,6.8623]
[1726448566768,23.776884,131.19,131.15,6.8623]
[1726448568466,30.637184,131.19,131.15,6.8623]
[1726448569479,30.637184,131.19,131.14,6.8627]
[1726448571757,6.8608,131.18,131.13,16.711265]
[1726448571966,23.776884,131.2,131.13,16.711265]
[1726448573055,23.776884,131.16,131.13,16.711265]
[1726448574492,30.638784,131.16,131.13,16.711265]
[1726448581999,23.776884,131.14,131.13,0.069165]
[1726448582711,30.639684,131.14,131.13,0.069165]
[1726448587712,30.639684,131.14,131.1,0.2910585]
[1726448587713,23.776884,131.11,131.1,0.2910585]
[1726448588185,30.641284,131.11,131.1,0.2910585]
[1726448588388,30.641284,131.11,131.06,16.8577585]
[1726448588793,30.641284,131.11,131.06,23.7245585]
[1726448589315,23.776884,131.09,131.06,16.8577585]
[1726448590191,30.642584,131.09,131.06,0.2910585]
[1726448590391,30.643384,131.07,131.06,0.2910585]
[1726448591304,66.4268,131.13,131.06,0.2910585]
[1726448591486,20.0,131.12,131.06,0.2910585]
[1726448591894,6.8646,131.11,131.06,7.1579585]
[1726448592094,6.8646,131.11,131.06,0.2910585]
[1726448592796,23.776884,131.1,131.06,0.2910585]
[1726448594304,23.776884,131.09,131.06,0.2910585]
[1726448594506,23.776884,131.11,131.06,0.2910585]
[1726448594804,23.776884,131.08,131.06,0.2910585]
[1726448595708,30.642884,131.08,131.06,0.2910585]
[1726448596808,30.643384,131.07,131.06,0.2910585]
[1726448597314,23.776884,131.07,131.06,0.2910585]
[1726448599401,6.865,131.1,131.06,0.2910585]
[1726448600911,23.776884,131.09,131.06,0.2910585]
[1726448601802,23.776884,131.09,131.06,7.1580585]
[1726448601981,23.776884,131.09,131.07,6.3041]
[1726448602400,23.776884,131.1,131.07,6.3041]
[1726448604106,23.776884,131.1,131.07,6.4666865]
[1726448604611,30.642284,131.1,131.07,6.4666865]
[1726448605703,23.776884,131.1,131.07,6.4666865]
[1726448607111,30.641884,131.1,131.07,6.4666865]
[1726448607487,23.776884,131.1,131.07,6.4666865]
[1726448607889,30.641984,131.1,131.07,6.4666865]
[1726448609412,23.776884,131.08,131.07,0.1625865]
[1726448610091,30.642884,131.08,131.07,0.1625865]
[1726448611316,23.776884,131.08,131.07,0.1625865]
[1726448611505,23.776884,131.1,131.07,0.1625865]
[1726448612219,30.642184,131.1,131.07,0.1625865]
[1726448612941,6.8656,131.09,131.07,0.1625865]
[1726448613097,23.776884,131.08,131.07,0.1625865]
[1726448614196,6.8651,131.1,131.07,0.1625865]
[1726448614512,23.776884,131.1,131.07,0.1625865]
[1726448615316,30.641984,131.1,131.07,0.1625865]
[1726448616207,23.776884,131.1,131.07,0.1625865]
[1726448617414,23.776884,131.11,131.07,7.0290865]
[1726448617923,6.864,131.12,131.07,7.0290865]
[1726448619423,23.776884,131.11,131.07,7.0290865]
[1726448621025,23.776884,131.12,131.08,6.8659]
[1726448621625,23.776884,131.12,131.08,15.9954]
[1726448621927,6.8625,131.15,131.1,6.8645]
[1726448622134,6.8629,131.14,131.1,6.8645]
[1726448622720,6.8629,131.14,131.09,12.8931]
[1726448623218,43.776884,131.16,131.09,6.0277]
[1726448623416,23.776884,131.12,131.09,6.0277]
[1726448623617,23.276884,131.12,131.09,6.0277]
[1726448623815,23.276884,131.12,131.09,12.893]
[1726448624720,6.863,131.14,131.09,12.893]
[1726448624940,6.863,131.14,131.1,6.8648]
[1726448625828,23.776884,131.13,131.1,6.8648]
[1726448629808,23.776884,131.14,131.1,6.8648]
[1726448631320,6.8614,131.17,131.12,6.8634]
[1726448632233,6.862,131.16,131.1,20.0]
[1726448632431,23.776884,131.15,131.1,20.0]
[1726448633333,23.776884,131.15,131.09,6.0277]
[1726448633509,23.776884,131.16,131.09,6.0277]
[1726448634528,23.776884,131.16,131.13,6.8632]
[1726448634839,23.776884,131.16,131.12,6.8638]
[1726448639262,23.776884,131.16,131.13,6.8632]
[1726448640156,23.776884,131.16,131.12,6.8638]
[1726448640944,30.638984,131.16,131.12,6.8638]
[1726448641266,23.776884,131.14,131.11,6.8644]
[1726448642345,23.776884,131.15,131.11,6.8644]
[1726448642672,23.776884,131.15,131.12,6.8636]
[1726448643168,6.9504355,131.18,131.1,15.67371356]
[1726448643335,23.776884,131.17,131.1,15.67371356]
[1726448643856,6.9504355,131.18,131.13,22.22001356]
[1726448643857,0.0896355,131.18,131.13,22.22001356]
[1726448644469,0.0896355,131.18,131.16,6.8616]
[1726448647047,0.0896355,131.18,131.15,6.8622]
[1726448649761,0.0896355,131.18,131.13,6.5463]
[1726448650156,0.0896355,131.18,131.13,13.4097]
[1726448650157,23.776884,131.17,131.13,13.4097]
[1726448651264,23.776884,131.17,131.14,6.8627]
[1726448651458,23.776884,131.17,131.15,6.8623]
[1726448651754,0.0896355,131.18,131.16,6.8617]
[1726448651953,0.0896355,131.18,131.17,6.8613]
[1726448652157,0.0896355,131.18,131.17,65.01141356]
[1726448652547,0.0896355,131.18,131.17,49.3377]
[1726448652954,0.0896355,131.18,131.17,22.4764]
[1726448653174,0.0896355,131.18,131.15,6.8618]
[1726448653556,0.0896355,131.18,131.14,6.8628]
[1726448653557,23.8665195,131.18,131.14,6.8628]
[1726448655064,30.7274195,131.18,131.13,29.3397]
[1726448655269,23.8665195,131.18,131.14,6.8628]
[1726448655656,23.8665195,131.18,131.15,6.8622]
[1726448655858,0.0896355,131.18,131.15,6.8622]
[1726448657985,0.0896355,131.18,131.14,6.8627]